bitfinex/quotes_BTCUSD_20230120
["timestamp","ask_amount","ask_price","bid_price","bid_amount"]
[1674229118909,0.33060764,21137.0,21135.0,0.946296]
[1674229119472,0.48060764,21137.0,21135.0,0.946296]
[1674229119689,0.067,21136.0,21135.0,0.946296]
[1674229119968,0.067,21136.0,21135.0,1.246296]
[1674229120226,0.067,21136.0,21135.0,0.948296]
[1674229120489,0.067,21136.0,21135.0,1.248296]
[1674229120812,0.067,21136.0,21135.0,0.948296]
[1674229121044,0.33060764,21137.0,21135.0,0.946296]
[1674229121873,0.079,21136.0,21135.0,0.474148]
[1674229122175,0.48060764,21137.0,21135.0,0.473148]
[1674229122443,0.55960764,21137.0,21135.0,0.474148]
[1674229122708,0.48060764,21137.0,21135.0,0.473148]
[1674229122966,0.079,21136.0,21135.0,0.474148]
[1674229123229,0.48060764,21137.0,21135.0,0.473148]
[1674229123535,0.55960764,21137.0,21135.0,0.474148]
[1674229124055,0.38776825,21136.0,21135.0,0.474148]
[1674229124314,0.38776825,21136.0,21135.0,0.001]
[1674229124581,0.85286125,21136.0,21135.0,0.001]
[1674229125120,0.85286125,21136.0,21133.0,0.52317273]
[1674229125376,0.61676825,21136.0,21135.0,0.001]
[1674229125635,0.93884225,21136.0,21135.0,0.001]
[1674229127507,0.61676825,21136.0,21135.0,0.001]
[1674229127698,0.94111825,21136.0,21135.0,0.001]
[1674229128496,0.80247525,21136.0,21135.0,0.001]
[1674229128764,0.46676825,21136.0,21135.0,0.001]
[1674229129549,0.78335225,21136.0,21135.0,0.001]
[1674229129808,0.93335225,21136.0,21135.0,0.001]
[1674229130642,0.78335225,21136.0,21135.0,0.001]
[1674229130895,0.46676825,21136.0,21135.0,0.001]
[1674229131912,0.079,21136.0,21135.0,0.001]
[1674229132173,0.079,21136.0,21135.0,0.301]
[1674229132439,0.079,21136.0,21135.0,1.247296]
[1674229132725,0.079,21136.0,21135.0,1.338103]
[1674229135812,0.079,21136.0,21135.0,1.247296]
[1674229136589,0.079,21136.0,21135.0,1.338103]
[1674229136847,0.079,21136.0,21135.0,1.488103]
[1674229138425,0.43793751,21139.0,21135.0,1.487103]
[1674229138688,0.00591715,21136.0,21135.0,1.265296]
[1674229138960,0.38025187,21138.0,21135.0,1.246296]
[1674229139234,0.006,21136.0,21135.0,1.265296]
[1674229139487,0.006,21136.0,21135.0,0.965296]
[1674229140266,0.08305,21136.0,21135.0,0.965296]
[1674229140580,0.006,21136.0,21135.0,0.965296]
[1674229141326,0.006,21136.0,21135.0,1.0561]
[1674229141586,0.006,21136.0,21135.0,1.5061]
[1674229142126,0.006,21136.0,21135.0,1.3561]
[1674229142650,0.006,21136.0,21135.0,1.265296]
[1674229143207,0.006,21136.0,21135.0,1.506103]
[1674229144204,0.006,21136.0,21135.0,1.61909014]
[1674229144475,0.00377485,21136.0,21135.0,2.91581872]
[1674229144772,0.00377485,21136.0,21135.0,3.19850888]
[1674229145024,0.00377485,21136.0,21135.0,4.03495267]
[1674229145285,0.00377485,21136.0,21135.0,3.47763088]
[1674229145554,0.00377485,21136.0,21135.0,2.53161478]
[1674229145838,0.00377485,21136.0,21135.0,3.69556201]
[1674229146353,0.00377485,21136.0,21135.0,2.53165441]
[1674229146873,0.00377485,21136.0,21135.0,3.47768443]
[1674229147185,0.00377485,21136.0,21135.0,3.64728641]
[1674229147452,0.00377485,21136.0,21135.0,3.9219169]
[1674229147707,0.00377485,21136.0,21135.0,3.92191836]
[1674229147962,0.00377485,21136.0,21135.0,2.97588834]
[1674229148233,0.00377485,21136.0,21135.0,3.47770388]
[1674229148524,0.00377485,21136.0,21135.0,3.80892323]
[1674229149528,0.00377485,21136.0,21135.0,3.47770449]
[1674229150031,0.00377485,21136.0,21135.0,3.69590042]
[1674229150035,0.00377485,21136.0,21135.0,3.92205255]
[1674229150283,0.00377485,21136.0,21135.0,3.69591976]
[1674229150813,0.00377485,21136.0,21135.0,3.92207189]
[1674229151085,0.00377485,21136.0,21135.0,3.80891278]
[1674229151329,0.00377485,21136.0,21135.0,4.03521326]
[1674229151589,0.00377485,21136.0,21135.0,4.03520317]
[1674229152106,0.00377485,21136.0,21135.0,3.69593785]
[1674229152362,0.00377485,21136.0,21135.0,4.03520317]
[1674229152620,0.00158343,21136.0,21135.0,4.13271593]
[1674229153150,0.00158343,21136.0,21135.0,3.52622262]
[1674229153933,0.00158343,21136.0,21135.0,4.21694223]
[1674229154204,0.00158343,21136.0,21135.0,4.21682097]
[1674229154464,0.00158343,21136.0,21135.0,3.61062262]
[1674229154996,0.00158343,21136.0,21135.0,3.89344597]
[1674229155261,0.00158343,21136.0,21135.0,3.59344597]
[1674229155516,0.00158343,21136.0,21135.0,3.66122716]
[1674229155788,0.00158343,21136.0,21135.0,3.43496921]
[1674229156061,0.00158343,21136.0,21135.0,3.66115778]
[1674229156333,0.00158343,21136.0,21135.0,3.43487659]
[1674229156594,0.00158343,21136.0,21135.0,3.65887659]
[1674229156854,0.00158343,21136.0,21135.0,3.88513891]
[1674229157877,0.00158343,21136.0,21135.0,3.82860873]
[1674229157879,0.00094314,21136.0,21135.0,3.65894014]
[1674229158133,0.00094314,21136.0,21135.0,3.77206568]
[1674229158950,0.00094314,21136.0,21135.0,3.25175685]
[1674229159174,0.00094314,21136.0,21135.0,3.16094985]
[1674229159691,0.00094314,21136.0,21135.0,1.27789315]
[1674229160247,0.00094314,21136.0,21135.0,1.39107152]
[1674229160483,0.41539811,21136.0,21135.0,1.09107152]
[1674229160736,0.41539811,21136.0,21135.0,0.97789315]
[1674229161274,0.41539811,21136.0,21135.0,0.50474515]
[1674229162085,0.41539811,21136.0,21135.0,0.03159715]
[1674229162618,0.73520011,21136.0,21135.0,0.03159715]
[1674229162907,0.33834811,21136.0,21135.0,0.03159715]
[1674229163169,0.33834811,21136.0,21135.0,0.50474515]
[1674229163693,0.33834811,21136.0,21135.0,0.97789315]
[1674229164249,0.33834811,21136.0,21135.0,0.50474515]
[1674229164514,0.33834811,21136.0,21135.0,0.03159715]
[1674229165783,0.66160211,21136.0,21135.0,0.03159715]
[1674229166309,0.81160211,21136.0,21135.0,0.03159715]
[1674229166573,0.47419714,21136.0,21135.0,0.03159715]
[1674229166882,1.85931835,21136.0,21135.0,0.03159715]
[1674229167359,1.97335083,21136.0,21135.0,0.01259715]
[1674229167617,1.97240769,21136.0,21135.0,0.01259715]
[1674229167891,2.42462315,21136.0,21135.0,0.002]
[1674229168427,2.35562315,21136.0,21130.0,0.48784803]
[1674229168688,1.85832731,21135.0,21130.0,0.53622662]
[1674229168948,1.37877012,21134.0,21130.0,0.06298062]
[1674229169214,0.483102,21133.0,21130.0,0.06298062]
[1674229169720,0.323689,21132.0,21130.0,0.53624062]
[1674229169989,0.334771,21131.0,21130.0,0.06298062]
[1674229170264,0.334771,21131.0,21130.0,0.01460203]
[1674229170529,0.62720169,21132.0,21130.0,0.01760203]
[1674229170530,1.10042269,21132.0,21130.0,0.01760203]
[1674229170816,0.318575,21131.0,21130.0,0.01460203]
[1674229171075,0.81577669,21131.0,21130.0,0.01760203]
[1674229171387,1.39881246,21131.0,21130.0,0.01760203]
[1674229171651,1.77206523,21131.0,21130.0,0.01760203]
[1674229171916,1.89669938,21131.0,21130.0,0.01760203]
[1674229172172,1.93761302,21131.0,21130.0,0.01760203]
[1674229172444,2.37106815,21131.0,21130.0,0.01760203]
[1674229172701,2.37609334,21131.0,21130.0,0.01760203]
[1674229173223,2.88285534,21131.0,21130.0,0.01460203]
[1674229173762,2.96985534,21131.0,21130.0,0.01460203]
[1674229174023,3.44309334,21131.0,21130.0,0.01460203]
[1674229174289,3.45449334,21131.0,21130.0,0.01460203]
[1674229174605,2.87793015,21131.0,21130.0,0.01460203]
[1674229174907,2.58171469,21131.0,21130.0,0.01460203]
[1674229175157,2.8309305,21131.0,21130.0,0.01460203]
[1674229175421,2.58171469,21131.0,21130.0,0.01460203]
[1674229175682,3.02516849,21131.0,21130.0,0.01460203]
[1674229175942,2.64662511,21131.0,21130.0,0.01460203]
[1674229176214,2.55962511,21131.0,21130.0,0.01460203]
[1674229176477,2.64662511,21131.0,21130.0,0.01460203]
[1674229176734,3.00148021,21131.0,21130.0,0.01460203]
[1674229176995,3.50307857,21131.0,21130.0,0.01460203]
[1674229177258,3.03286311,21131.0,21130.0,0.01460203]
[1674229177555,3.43043336,21131.0,21130.0,0.01460203]
[1674229177820,2.40825736,21131.0,21130.0,0.01460203]
[1674229178080,2.03277669,21131.0,21130.0,0.01460203]
[1674229178350,1.45905275,21131.0,21130.0,0.01460203]
[1674229178622,1.91482266,21131.0,21130.0,0.01460203]
[1674229179184,0.92075353,21131.0,21130.0,0.01460203]
[1674229179456,0.77075353,21131.0,21130.0,0.01460203]
[1674229181790,0.92075353,21131.0,21130.0,0.01460203]
[1674229182310,0.75176833,21131.0,21130.0,0.01460203]
[1674229182567,0.45227133,21131.0,21130.0,0.48786203]
[1674229182851,0.087,21131.0,21130.0,0.96112203]
[1674229183110,0.087,21131.0,21130.0,1.41112203]
[1674229183378,0.087,21131.0,21130.0,1.50205303]
[1674229183952,0.44980675,21133.0,21130.0,1.50205303]
[1674229184257,0.15,21136.0,21131.0,0.45]
[1674229184529,0.41387538,21135.0,21132.0,1.510531]
[1674229184789,0.47720169,21137.0,21133.0,0.3]
[1674229185057,0.44619212,21136.0,21134.0,0.473166]
[1674229185310,0.474874,21135.0,21133.0,0.946366]
[1674229185614,0.324272,21134.0,21133.0,0.946366]
[1674229186129,0.15,21135.0,21133.0,0.946366]
[1674229186408,0.15,21135.0,21134.0,0.001]
[1674229187188,0.014,21134.0,21133.0,0.948367]
[1674229187451,0.08,21135.0,21133.0,0.946367]
[1674229188235,0.08,21135.0,21134.0,0.3]
[1674229188471,0.44823682,21135.0,21133.0,0.946367]
[1674229189245,0.52723682,21135.0,21133.0,0.947367]
[1674229189501,0.52723682,21135.0,21133.0,0.71530702]
[1674229191057,0.44379452,21134.0,21133.0,0.474193]
[1674229191324,0.77335752,21134.0,21133.0,0.001]
[1674229191582,0.88120327,21134.0,21133.0,0.001]
[1674229191858,0.77335752,21134.0,21133.0,0.001]
[1674229192145,0.92335752,21134.0,21133.0,0.001]
[1674229192390,1.00235752,21134.0,21133.0,0.001]
[1674229193196,0.85235752,21134.0,21133.0,0.001]
[1674229193489,0.52279452,21134.0,21133.0,0.001]
[1674229194511,0.96513467,21134.0,21133.0,0.001]
[1674229195011,1.11513467,21134.0,21133.0,0.001]
[1674229195270,0.52279452,21134.0,21133.0,0.001]
[1674229195823,0.85113852,21134.0,21133.0,0.001]
[1674229196305,0.52279452,21134.0,21133.0,0.001]
[1674229198758,0.079,21134.0,21133.0,1.247386]
[1674229199021,0.079,21134.0,21133.0,1.338296]
[1674229199300,0.079,21134.0,21133.0,1.038296]
[1674229199604,0.079,21134.0,21133.0,1.247386]
[1674229199873,0.079,21134.0,21133.0,1.338296]
[1674229200363,0.079,21134.0,21133.0,1.488296]
[1674229200643,0.079,21134.0,21133.0,1.038296]
[1674229200907,0.079,21134.0,21133.0,1.338296]
[1674229201704,0.079,21134.0,21133.0,1.483296]
[1674229203254,0.079,21134.0,21133.0,1.333296]
[1674229203517,0.079,21134.0,21133.0,1.242386]
[1674229203779,0.079,21134.0,21133.0,1.333296]
[1674229204572,0.079,21134.0,21133.0,1.483296]
[1674229204844,0.079,21134.0,21133.0,1.333296]
[1674229205106,0.079,21134.0,21133.0,1.34549233]
[1674229205874,0.079,21134.0,21133.0,1.49549233]
[1674229207148,0.079,21134.0,21133.0,1.96868533]
[1674229207675,0.079,21134.0,21133.0,2.0818637]
[1674229207955,0.04705292,21134.0,21133.0,3.02796474]
[1674229208200,0.04705292,21134.0,21133.0,1.51868533]
[1674229208452,0.04705292,21134.0,21133.0,1.42777533]
[1674229208976,0.04705292,21134.0,21133.0,1.51868533]
[1674229209278,0.04705292,21134.0,21133.0,1.42777533]
[1674229209528,0.04705292,21134.0,21133.0,1.72777533]
[1674229209795,0.04705292,21134.0,21133.0,0.95458233]
[1674229210306,0.39913375,21134.0,21133.0,0.48138933]
[1674229211120,0.39913375,21134.0,21133.0,0.95458233]
[1674229211645,0.04705292,21134.0,21133.0,1.25458233]
[1674229211948,0.04705292,21134.0,21133.0,1.34549233]
[1674229212734,0.04705292,21134.0,21133.0,1.04549233]
[1674229213001,0.04705292,21134.0,21133.0,0.95458233]
[1674229213555,0.04705292,21134.0,21133.0,1.25458233]
[1674229213820,0.04705292,21134.0,21133.0,1.49549233]
[1674229214346,0.04705292,21134.0,21133.0,1.6086707]
[1674229214922,0.04705292,21134.0,21133.0,2.01888225]
[1674229214924,0.04705292,21134.0,21133.0,1.57159233]
[1674229215191,0.04705292,21134.0,21133.0,2.96499608]
[1674229215456,0.40143297,21138.0,21133.0,2.63084438]
[1674229215726,0.40143297,21138.0,21134.0,0.5409]
[1674229216002,0.40143297,21138.0,21135.0,1.89258]
[1674229216269,0.45879345,21139.0,21136.0,0.39089]
[1674229216518,0.45879345,21139.0,21137.0,0.946208]
[1674229216784,0.15725991,21141.0,21138.0,0.540877]
[1674229216785,0.00725991,21141.0,21138.0,0.540877]
[1674229217048,0.46782105,21140.0,21139.0,0.946118]
[1674229217524,0.46782105,21140.0,21139.0,0.473059]
[1674229217525,0.46782105,21140.0,21137.0,0.473104]
[1674229217789,0.339161,21139.0,21138.0,0.473079]
[1674229218048,0.339161,21139.0,21137.0,0.521088]
[1674229218322,0.33495,21138.0,21136.0,0.473107]
[1674229218603,0.19432097,21139.0,21137.0,0.473101]
[1674229218848,0.331084,21138.0,21137.0,0.473101]
[1674229219107,0.53456518,21139.0,21137.0,0.473101]
[1674229219658,0.321712,21138.0,21137.0,0.473101]
[1674229219949,0.53456518,21139.0,21137.0,0.473101]
[1674229220211,0.53456518,21139.0,21136.0,0.473106]
[1674229220478,0.309937,21138.0,21137.0,0.004]
[1674229221001,0.7004529,21138.0,21137.0,0.004]
[1674229221544,0.8504529,21138.0,21135.0,0.52212807]
[1674229221797,0.67972431,21137.0,21135.0,0.52212807]
[1674229222060,0.36970331,21137.0,21135.0,0.52212807]
[1674229222328,0.36970331,21137.0,21135.0,0.946276]
[1674229223087,0.37370331,21137.0,21135.0,0.521128]
[1674229223354,0.36970331,21137.0,21134.0,0.473152]
[1674229223617,0.15,21136.0,21134.0,0.473152]
[1674229223878,0.36970331,21137.0,21134.0,0.473152]
[1674229224916,0.15,21136.0,21134.0,0.473152]
[1674229225439,0.36970331,21137.0,21134.0,0.946323]
[1674229225717,0.41370331,21137.0,21134.0,0.950323]
[1674229225981,0.36970331,21137.0,21134.0,0.946323]
[1674229226238,0.044,21136.0,21134.0,0.950323]
[1674229226737,0.044,21136.0,21134.0,0.473171]
[1674229226743,0.044,21136.0,21134.0,0.477171]
[1674229226992,0.54329445,21136.0,21134.0,0.477171]
[1674229227514,0.34929445,21136.0,21133.0,0.48537333]
[1674229227798,0.39329445,21136.0,21134.0,0.477163]
[1674229228038,0.39329445,21136.0,21134.0,0.950334]
[1674229229083,0.34929445,21136.0,21134.0,0.946334]
[1674229229901,0.34929445,21136.0,21134.0,0.477171]
[1674229229902,0.39329445,21136.0,21134.0,0.477171]
[1674229230167,0.39329445,21136.0,21134.0,0.004]
[1674229230470,0.331111,21135.0,21134.0,0.004]
[1674229231739,0.481111,21135.0,21134.0,0.004]
[1674229231982,0.525111,21135.0,21134.0,0.004]
[1674229232232,0.97859808,21135.0,21134.0,0.004]
[1674229232484,0.82859808,21135.0,21134.0,0.004]
[1674229233097,0.8285058,21135.0,21134.0,0.004]
[1674229233497,0.81658808,21135.0,21134.0,0.004]
[1674229233776,0.80050608,21135.0,21134.0,0.004]
[1674229234031,0.80050608,21135.0,21134.0,0.477171]
[1674229234316,0.49748708,21135.0,21134.0,0.004]
[1674229234553,0.044,21135.0,21134.0,0.777171]
[1674229235320,0.044,21135.0,21134.0,0.304]
[1674229235579,0.044,21135.0,21134.0,0.004]
[1674229235842,0.044,21135.0,21134.0,0.477171]
[1674229236141,0.044,21135.0,21134.0,0.004]
[1674229236667,0.044,21135.0,21134.0,0.950342]
[1674229236929,0.044,21135.0,21134.0,0.477171]
[1674229237438,0.044,21135.0,21134.0,0.777171]
[1674229237913,0.044,21135.0,21134.0,1.250342]
[1674229238407,0.044,21135.0,21134.0,0.777171]
[1674229238675,0.044,21135.0,21134.0,1.250342]
[1674229239470,0.38979487,21135.0,21134.0,0.950342]
[1674229239953,0.044,21135.0,21134.0,0.950342]
[1674229240207,0.044,21135.0,21134.0,1.250342]
[1674229240458,0.044,21135.0,21134.0,1.341338]
[1674229240760,0.044,21135.0,21134.0,1.45451637]
[1674229241222,0.044,21135.0,21134.0,1.341338]
[1674229241714,0.044,21135.0,21134.0,1.250342]
[1674229242223,0.044,21135.0,21134.0,1.341338]
[1674229243270,0.044,21135.0,21134.0,2.62421542]
[1674229243756,0.044,21135.0,21134.0,2.85047774]
[1674229244278,0.044,21135.0,21134.0,2.73748368]
[1674229244797,0.044,21135.0,21134.0,2.85047774]
[1674229245047,0.044,21135.0,21134.0,2.62421542]
[1674229245302,0.044,21135.0,21134.0,1.341338]
[1674229245565,0.044,21135.0,21134.0,1.250342]
[1674229245889,0.044,21135.0,21134.0,0.950342]
[1674229246845,0.39273615,21135.0,21134.0,0.477171]
[1674229248672,0.39273615,21135.0,21134.0,0.004]
[1674229249178,0.68365515,21135.0,21134.0,0.004]
[1674229249704,0.72611615,21135.0,21134.0,0.004]
[1674229253806,0.850528,21135.0,21134.0,0.004]
[1674229253808,2.19554094,21135.0,21134.0,0.004]
[1674229254064,1.72239294,21135.0,21134.0,0.004]
[1674229254329,1.94819294,21135.0,21134.0,0.004]
[1674229256693,1.79819294,21135.0,21134.0,0.004]
[1674229256961,0.850528,21135.0,21134.0,0.004]
[1674229257221,0.37738,21135.0,21134.0,0.004]
[1674229257507,0.04390261,21135.0,21134.0,0.004]
[1674229258295,0.04390261,21135.0,21134.0,0.477171]
[1674229259605,0.04390261,21135.0,21134.0,0.777171]
[1674229260930,0.04390261,21135.0,21134.0,0.477171]
[1674229261711,0.04390261,21135.0,21134.0,0.777171]
[1674229261971,0.04390261,21135.0,21134.0,0.004]
[1674229262234,0.399893,21135.0,21134.0,0.004]
[1674229262759,0.726104,21135.0,21134.0,0.004]
[1674229264161,0.726104,21135.0,21134.0,0.477171]
[1674229264600,0.734834,21135.0,21134.0,0.004]
[1674229264869,0.734834,21135.0,21134.0,1.477171]
[1674229265419,0.399893,21135.0,21134.0,1.477171]
[1674229266149,0.399893,21135.0,21134.0,1.004]
[1674229266669,0.04390261,21135.0,21134.0,1.004]
[1674229266928,0.78204931,21135.0,21134.0,1.004]
[1674229267186,1.732399,21135.0,21134.0,1.004]
[1674229267452,1.807999,21135.0,21134.0,1.004]
[1674229267942,2.431147,21135.0,21134.0,1.004]
[1674229269185,3.431147,21135.0,21134.0,1.004]
[1674229269723,2.957999,21135.0,21134.0,1.004]
[1674229271904,3.355547,21135.0,21134.0,1.004]
[1674229272088,2.882399,21135.0,21134.0,1.004]
[1674229272349,2.259251,21135.0,21134.0,1.004]
[1674229272623,2.732399,21135.0,21134.0,1.004]
[1674229274577,3.205547,21135.0,21134.0,1.004]
[1674229275625,3.281347,21135.0,21134.0,1.004]
[1674229276146,2.335051,21135.0,21134.0,1.004]
[1674229276681,1.335051,21135.0,21134.0,1.004]
[1674229276944,1.637148,21135.0,21134.0,1.004]
[1674229277240,1.952425,21135.0,21134.0,1.004]
[1674229277730,1.802425,21135.0,21134.0,1.004]
[1674229278279,0.77627531,21135.0,21134.0,1.004]
[1674229278834,0.04390261,21135.0,21134.0,1.004]
[1674229279345,0.04382798,21135.0,21134.0,1.477171]
[1674229280885,0.04382798,21135.0,21134.0,1.950342]
[1674229281666,0.04382798,21135.0,21134.0,2.250342]
[1674229282185,0.04382798,21135.0,21134.0,1.950342]
[1674229282977,0.04382798,21135.0,21134.0,2.250342]
[1674229283241,0.04382798,21135.0,21134.0,2.341338]
[1674229283779,0.04382798,21135.0,21134.0,3.92731571]
[1674229284046,0.04382798,21135.0,21134.0,3.70105339]
[1674229284304,0.04382798,21135.0,21134.0,3.73823168]
[1674229284568,0.04382798,21135.0,21134.0,3.57046604]
[1674229284819,0.04382798,21135.0,21134.0,2.45461629]
[1674229285177,0.04382798,21135.0,21134.0,3.57049512]
[1674229285628,0.04382798,21135.0,21134.0,2.45460025]
[1674229286151,0.04382798,21135.0,21134.0,3.73705104]
[1674229286408,0.04382798,21135.0,21134.0,3.73702652]
[1674229286672,0.04382798,21135.0,21134.0,3.85003109]
[1674229286933,0.02644983,21135.0,21134.0,3.9631223]
[1674229287474,0.02644983,21135.0,21134.0,3.68029895]
[1674229287805,0.02644983,21135.0,21134.0,3.9631223]
[1674229288826,0.02644983,21135.0,21134.0,3.69994067]
[1674229289386,0.02644983,21135.0,21134.0,3.92620299]
[1674229289643,0.02644983,21135.0,21134.0,3.81314585]
[1674229289903,0.02644983,21135.0,21134.0,3.40067956]
[1674229290493,0.02644983,21135.0,21134.0,3.84887946]
[1674229290772,0.02644983,21135.0,21134.0,3.96189877]
[1674229292007,0.02644983,21135.0,21134.0,3.84887789]
[1674229292011,0.02644983,21135.0,21134.0,3.62261557]
[1674229292306,0.02644983,21135.0,21134.0,3.84887789]
[1674229292562,0.02644983,21135.0,21134.0,3.73579942]
[1674229292822,0.02644983,21135.0,21134.0,3.84887789]
[1674229293090,0.02644983,21135.0,21134.0,3.84884584]
[1674229293339,0.02644983,21135.0,21134.0,3.67907542]
[1674229293607,0.02644983,21135.0,21134.0,4.03739877]
[1674229294158,0.02644983,21135.0,21134.0,3.92433283]
[1674229294430,0.02644983,21135.0,21134.0,3.64588786]
[1674229294945,0.02644983,21135.0,21134.0,2.52999407]
[1674229295197,0.02644983,21135.0,21134.0,3.47608511]
[1674229295433,0.02644983,21135.0,21134.0,4.03747045]
[1674229295952,0.02644983,21135.0,21134.0,3.92431438]
[1674229296218,0.02644983,21135.0,21134.0,3.81118735]
[1674229296474,0.02644983,21135.0,21134.0,3.64584123]
[1674229297326,0.02644983,21135.0,21134.0,3.69803008]
[1674229297594,0.02644983,21135.0,21134.0,3.81116888]
[1674229298379,0.02644983,21135.0,21134.0,3.76303499]
[1674229298640,0.02644983,21135.0,21134.0,4.04585834]
[1674229299438,0.01075115,21135.0,21134.0,4.04307199]
[1674229299739,1.15e-06,21135.0,21134.0,4.88866188]
[1674229299999,1.15e-06,21135.0,21134.0,5.17736188]
[1674229300270,1.15e-06,21135.0,21134.0,4.56834199]
[1674229300531,1.15e-06,21135.0,21134.0,4.83791437]
[1674229300787,0.00725991,21141.0,21134.0,5.17313707]
[1674229301100,0.20158088,21141.0,21137.0,0.46508383]
[1674229301365,0.00725991,21141.0,21139.0,0.076]
[1674229301632,0.00725991,21141.0,21140.0,1.419108]
[1674229301886,0.00725991,21141.0,21140.0,3.810062]
[1674229303714,0.00725991,21141.0,21140.0,3.903062]
[1674229304760,0.00725991,21141.0,21140.0,3.603062]
[1674229305234,0.00725991,21141.0,21140.0,3.903062]
[1674229307088,0.00725991,21141.0,21140.0,3.91863052]
[1674229308140,0.00725991,21141.0,21140.0,3.61863052]
[1674229308658,0.00725991,21141.0,21140.0,3.52767652]
[1674229308949,0.00725991,21141.0,21140.0,3.61862952]
[1674229309973,0.00725991,21141.0,21140.0,3.91862952]
[1674229315447,0.00725991,21141.0,21140.0,3.61862952]
[1674229315698,0.00725991,21141.0,21140.0,3.52767652]
[1674229315959,0.00725991,21141.0,21140.0,3.61862952]
[1674229316215,0.00725991,21141.0,21140.0,3.52767652]
[1674229316722,0.00725991,21141.0,21140.0,3.05464052]
[1674229317232,0.00725991,21141.0,21140.0,3.35464052]
[1674229317486,0.00725991,21141.0,21140.0,3.44559352]
[1674229318258,0.00725991,21141.0,21140.0,3.14559352]
[1674229318512,0.00725991,21141.0,21140.0,3.05464052]
[1674229318778,0.00725991,21141.0,21140.0,3.14559352]
[1674229319039,0.00725991,21141.0,21140.0,2.67255752]
[1674229319310,0.52866715,21141.0,21140.0,2.58160452]
[1674229319595,0.52866715,21141.0,21140.0,2.10856852]
[1674229319849,0.85685615,21141.0,21140.0,2.10856852]
[1674229320107,0.76210715,21141.0,21140.0,2.10856852]
[1674229320366,0.44300715,21141.0,21140.0,2.10856852]
[1674229320874,0.75672815,21141.0,21140.0,2.10856852]
[1674229321144,0.00725991,21141.0,21140.0,2.10856852]
[1674229321400,0.00725991,21141.0,21140.0,2.40856852]
[1674229321661,0.00725991,21141.0,21140.0,2.10856852]
[1674229322183,0.35762462,21141.0,21140.0,2.10856852]
[1674229322443,0.68985962,21141.0,21140.0,2.10856852]
[1674229322711,0.68057362,21141.0,21140.0,2.10856852]
[1674229322967,0.35762462,21141.0,21140.0,2.10856852]
[1674229323221,0.66868262,21141.0,21140.0,2.10856852]
[1674229323493,1.53845457,21141.0,21140.0,2.10856852]
[1674229323761,1.8171476,21141.0,21140.0,1.10856852]
[1674229324015,2.18977346,21141.0,21140.0,0.10856852]
[1674229324277,3.25518618,21141.0,21140.0,0.10856852]
[1674229324591,3.42820018,21141.0,21140.0,0.10856852]
[1674229324798,3.42820018,21141.0,21140.0,0.01556852]
[1674229324799,3.02768746,21141.0,21140.0,0.01556852]
[1674229325068,2.6600616,21141.0,21140.0,0.02256852]
[1674229325321,3.6550616,21141.0,21140.0,0.01556852]
[1674229325581,5.03246979,21141.0,21140.0,0.02356852]
[1674229325807,5.03244014,21141.0,21140.0,0.01556852]
[1674229326114,4.6650616,21141.0,21140.0,0.02356852]
[1674229327697,4.6550616,21141.0,21140.0,0.01556852]
[1674229327952,4.6600616,21141.0,21140.0,0.02356852]
[1674229329008,4.3715616,21141.0,21140.0,0.02356852]
[1674229330545,4.74396726,21141.0,21140.0,0.02356852]
[1674229331311,4.66841701,21141.0,21140.0,0.02345601]
[1674229331550,4.74391701,21141.0,21140.0,0.02345601]
[1674229332100,4.72004664,21141.0,21140.0,0.02345601]
[1674229332405,4.3714616,21141.0,21140.0,0.02345601]
[1674229333943,4.79396402,21141.0,21140.0,0.02345601]
[1674229334730,4.16905002,21141.0,21140.0,0.02345601]
[1674229337845,3.7465476,21141.0,21140.0,0.02345601]
[1674229338628,4.10455335,21141.0,21140.0,0.02345601]
[1674229338920,3.7465476,21141.0,21140.0,0.02345601]
[1674229339454,4.21241007,21141.0,21140.0,0.02345601]
[1674229340516,2.2735336,21141.0,21140.0,0.02345601]
[1674229340784,1.32331791,21141.0,21140.0,0.02345601]
[1674229341309,0.01225991,21141.0,21140.0,0.49649201]
[1674229341794,0.00725991,21141.0,21140.0,0.48849201]
[1674229342056,0.01225991,21141.0,21140.0,0.49449201]
[1674229342306,0.01225991,21141.0,21140.0,0.64449201]
[1674229342567,0.01225991,21141.0,21140.0,2.41752801]
[1674229342852,0.01225991,21141.0,21140.0,2.50848101]
[1674229343358,0.01225991,21141.0,21140.0,2.58398101]
[1674229346591,0.01225991,21141.0,21140.0,2.96600535]
[1674229346857,0.01225991,21141.0,21140.0,2.58398101]
[1674229347392,0.01225991,21141.0,21140.0,2.96600535]
[1674229347653,0.01225991,21141.0,21140.0,2.58398101]
[1674229347907,0.01225991,21141.0,21140.0,2.96600535]
[1674229348430,0.00735403,21141.0,21140.0,2.96600535]
[1674229348941,0.00235403,21141.0,21140.0,2.96850535]
[1674229349199,0.00235403,21141.0,21140.0,3.23955937]
[1674229350222,0.00235403,21141.0,21140.0,3.15255937]
[1674229350472,0.00235403,21141.0,21140.0,2.7444855]
[1674229350754,0.00235403,21141.0,21140.0,2.6574855]
[1674229351006,0.00235403,21141.0,21140.0,2.7444855]
[1674229352080,0.00235403,21141.0,21140.0,3.12650984]
[1674229352332,0.00235403,21141.0,21140.0,3.23955937]
[1674229353630,0.00235403,21141.0,21140.0,4.52148328]
[1674229353887,0.00093926,21141.0,21140.0,3.40897035]
[1674229354132,0.00093926,21141.0,21140.0,2.7444855]
[1674229354397,0.00093926,21141.0,21140.0,2.85737171]
[1674229354914,0.00093926,21141.0,21140.0,3.23939605]
[1674229355152,0.00093926,21141.0,21140.0,2.85737171]
[1674229355666,0.00093926,21141.0,21140.0,3.57601233]
[1674229355956,0.00093926,21141.0,21140.0,4.52173056]
[1674229356204,0.00093926,21141.0,21140.0,3.57599667]
[1674229356488,0.00093926,21141.0,21140.0,4.63491367]
[1674229356773,0.00093926,21141.0,21140.0,2.7444855]
[1674229357025,0.00093926,21141.0,21140.0,2.6689855]
[1674229358310,0.00093926,21141.0,21140.0,2.3604855]
[1674229359888,0.00093926,21141.0,21140.0,2.6604855]
[1674229366694,0.09632926,21141.0,21140.0,2.0440325]
[1674229367210,0.00093926,21141.0,21140.0,2.0440325]
[1674229368011,0.00093926,21141.0,21140.0,1.9570325]
[1674229368266,0.01293926,21141.0,21140.0,1.9590325]